{"text_format":"1","workbook":"xlsx","n_sheets":3,"sheets":["Протокол испытания","Лист2","Лист3"],"not_rendered":{"charts":1,"images":1,"macros":1,"external_links":1,"defined_names":3,"comments":0,"pivot_tables":0},"unopened":[],"bounds":{"document_bytes":16777216,"sheet_cells":100000,"rows_first":2000,"rows_last":500,"rows_between":2000,"halvings":0,"cell_chars":16384,"cell_head_chars":4096},"cells_cut":0,"cells_raw":0,"read":"whole","date_system":"1900"}

{"sheet":"Протокол испытания","index":0,"n_rows":106,"n_cols":27,"rows_kept":106,"cut":false,"hidden":false,"merged":[[49,18,49,21],[35,9,36,9],[96,1,96,9],[29,3,29,5],[61,8,61,9],[83,1,83,9],[73,1,73,9],[45,3,45,4],[69,1,69,7],[86,1,86,9],[87,1,87,9],[35,1,35,2],[94,1,94,9],[93,1,93,9],[88,1,88,9],[20,8,20,9],[36,1,36,2],[37,1,37,2],[43,8,44,8],[43,9,44,9],[41,9,42,9],[28,8,28,9],[39,1,39,9],[38,1,38,2],[29,6,29,7],[29,8,29,9],[29,1,30,2],[31,1,31,2],[32,1,32,2],[33,1,33,2],[34,1,34,2],[99,1,100,9],[60,1,60,7],[62,1,62,4],[63,1,63,4],[62,5,62,9],[63,5,63,9],[77,1,77,9],[78,3,78,9],[82,3,82,9],[81,3,81,9],[80,3,80,9],[79,3,79,9],[85,1,85,9],[84,1,84,9],[74,1,74,9],[95,1,95,9],[9,0,9,10],[45,1,45,2],[44,3,44,4],[43,5,44,5],[43,6,44,7],[43,1,44,2],[20,2,20,5],[21,3,21,9],[19,1,19,2],[40,1,42,2],[41,3,41,4],[42,3,42,4],[22,1,23,9],[40,3,40,9],[41,6,42,7],[41,8,42,8],[105,8,105,9],[105,5,105,7],[6,0,6,10],[8,0,8,10],[7,0,7,10],[18,8,18,9],[14,8,14,10],[11,8,11,10],[12,8,12,10],[13,8,13,10],[18,3,18,4],[16,4,16,5],[19,3,19,9],[43,3,43,4],[45,6,45,7],[104,8,104,9],[89,1,89,9],[90,1,90,9],[91,1,91,9],[92,1,92,9],[49,11,49,14]]}
[null,null,null,null,null,null,null,null,null,null,null,null,null,null,null,"2016-02-10T09:46:38","AGusev"]
[]
[]
[]
[]
[]
["ИНН 7719838588/ КПП500301001, 142703, Московская обл., Ленинский р-н, г. Видное, ул. Школьная, д.26а, "]
["ОКПО  17265369 ОКВЭД 26.63  ОКТМО – 46628101 ОГРН 1137746192990"]
["ТЕЛ.8 (495)  740-03-66 доб. 4569, e-mail: m.lab@gradindustry.ru"]
["Свидетельство об аттестации испытательной лаборатории № 211/15 от 10 июля 2015 г."]
[]
[null,null,null,null,null,null,null,null,"УТВЕРЖДАЮ:"]
[null,null,null,null,null,null,null,null,"Начальник лаборатории"]
[null,null,null,null,null,null,null,null,"___________ Р.В. Кузнецов"]
[null,null,null,null,null,null,null,null,{"$f":"I19","v":"2016-02-08"}]
[]
[null,null,null,null,"ПРОТОКОЛ №:",null,1]
[]
[null,"Дата поступления:  ",null,"2016-02-08",null,null,"Дата испытания: ",null,"2016-02-08"]
[null,"Карьер/Поставщик:",null,"ООО Карьер"]
[null,"Порода:","гравий",null,null,null,null,"Фракция:","5(3):10",null,null,"щебень из гравия",null,"5(3):10"]
[null,"Место хранения:",null,"Производственная база",null,null,null,null,null,null,null,"гравий",null,"5:20"]
[null,"Результаты испытаний:"]
[]
[null,"1.  Насыпная плотность  щебня в  естественном состоянии,  кг/м³:",null,null,null,null,null,null,null,1475,"кг/м³"]
[null,"2.  Насыпная плотность  щебня в  сухом состоянии,  кг/м³:",null,null,null,null,null,null,null,1487,"кг/м³"]
[null,"3. Влажность щебня, % по массе:",null,null,null,null,null,null,null,2.3400000000000001E-2]
[null,"4. Зерновой состав:"]
[null,null,null,null,null,null,null,null,"Таблица №1"]
[null,"  Размеры сит, мм",null,"         Частные остатки, г",null,null,"Средние значения",null," Полные остатки, %"]
[null,null,null,1,2,3,"г","%","факт.","ч.о.,% по ГОСТ 26633-2012 (таблица №3):"]
[null,"25",null,null,"-","-",{"$f":"IF(SUM(D32:F32)/3=0,\"\",AVERAGE(D32:F32))","v":""},{"$f":"IF(G32=\"\",\"\",G32/100)","v":""},{"$f":"IF(H32=\"\",0,H32)","v":0}]
[null,"20",null,624,"-","-",{"$f":"IF(SUM(D33:F33)/3=0,\"\",AVERAGE(D33:F33))","v":624},{"$f":"IF(G33=\"\",\"\",G33/100)","v":6.24},{"$f":"IF(H32=\"\",H33,I32+H33)","v":6.24}]
[null,"12,5",null,3152,"-","-",3152,31.52,{"$f":"I33+H34","v":37.76},null,null,null,null,"5(3):10",{"$f":"IF(J36=\"\",\"-\",IF(J36<=90,\"- не соответствует ГОСТ 26633-2012 п.3.5.2.4 таблица №3\",IF(J36>=90,\"- соответствует ГОСТ 26633-2012 п.3.5.2.4 таблица №3\",IF(J36>100,\"- не соответствует ГОСТ 26633-2012 п.3.5.2.4 таблица №3\",\"-\"))))","v":"- не соответствует ГОСТ 26633-2012 п.3.5.2.4 таблица №3"}]
[null,10,null,2500,"-","-",2500,25,{"$f":"I34+H35","v":62.76},{"$f":"IF(I21=N22,SUM(H34:H35),\"\")","v":""},null,null,null,"5:20",{"$f":"IF(J35=\"\",\"-\",IF(J35>75,\"- не соответствует ГОСТ 26633-2012 п.3.5.2.4 таблица №3\",IF(J35<60,\"- не соответствует ГОСТ 26633-2012 п.3.5.2.4 таблица №3\",\"- соответствует ГОСТ 26633-2012 п.3.5.2.4 таблица №3\")))","v":"-"}]
[null,"7,5",null,400,"-","-",400,4,{"$f":"IF(H36=\"\",\"\",I35+H36)","v":66.759999999999991},{"$f":"IF(I21=N21,SUM(H36:H38),\"\")","v":26.01}]
[null,5,null,1971,null,"-",1971,19.71,{"$f":"IF(I36=\"\",I35+H37,I36+H37)","v":86.47}]
[null,2.5,null,230,"-","-",230,2.2999999999999998,{"$f":"I37+H38","v":88.77},{"$f":"IF(I21=N22,SUM(H37:H38),\"\")","v":""},null,null,"фр. 10:20",{"$f":"IF(I21=N21,O34,IF(I21=N22,O35,))","v":"- не соответствует ГОСТ 26633-2012 п.3.5.2.4 таблица №3"}]
[null,"Дно",null,258,"-","-",258,2.58,{"$f":"(I38+H39)/100","v":0.91349999999999998},null,null,null,"фр. 5:10",{"$f":"IF(J38=\"\",\"\",IF(J38<25,\"- не соответствует ГОСТ 26633-2012 п.3.5.2.4 таблица №3\",IF(J38>40,\"- не соответствует ГОСТ 26633-2012 п.3.5.2.4 таблица №3\",\"- соответствует ГОСТ 26633-2012 п.3.5.2.4 таблица №3\")))","v":""}]
[null,"Примечание. Допустимые пределы зернового состава каждой фракции (смеси), ГОСТ 8267-93 таблица №1"]
[null," Размеры отверстий контрольных сит, мм",null,"                   Полный остаток на ситах, % по массе, зерен размером, мм"]
[null,null,null,"  дополнительное сито",null,"d","       0,5 (d + D)",null,"D ","1,25 D"]
[null,null,null,"2,5 (1,25)",null,"5 (3)"]
[null," 5-20 и по фракциям, по согласованию",null,"95…100",null,"90…100","30…80",null,"0…10","0…0,50"]
[null,null,null,"для фр. 5-10 и 5-20 мм"]
[null,"    Фактические п.о.,%",null,{"$f":"I38","v":88.77},null,{"$f":"I37","v":86.47},{"$f":"I34","v":37.76},null,{"$f":"I33","v":6.24},{"$f":"I32","v":0}]
[]
[]
[]
[null,null,null,null,null,null,null,null,null,null,null,"5:20",null,null,null,null,null,null,"5(3):10"]
[null,null,null,null,null,null,null,null,null,null,null,"нижняя","верх.","сита","Остатки",null,null,null,"нижняя","верх.","сита",null,null,null,"Нижняя предупредительная граница","Верхняя предупредительная граница","Полные остатки на сите"]
[null,null,null,null,null,null,null,null,null,null,null,0,0.5,"25",{"$f":"I32","v":0},null,null,null,0,0,"25",{"$f":"I32","v":0},null,null,{"$f":"IF(IF($I$21=$L$50,L52,S52)=\"\",NA(),IF($I$21=$L$50,L52,S52))","v":0},{"$f":"IF(IF($I$21=$L$50,M52,T52)=\"\",NA(),IF($I$21=$L$50,M52,T52))","v":0},{"$f":"IF(IF($I$21=$L$50,O52,V52)=\"\",NA(),IF($I$21=$L$50,O52,V52))","v":0}]
[null,null,null,null,null,null,null,null,null,null,null,0,10,"20",{"$f":"I33","v":6.24},null,null,null,0,0,"20",{"$f":"I33","v":6.24},null,null,{"$f":"IF(IF($I$21=$L$50,L53,S53)=\"\",NA(),IF($I$21=$L$50,L53,S53))","v":0},{"$f":"IF(IF($I$21=$L$50,M53,T53)=\"\",NA(),IF($I$21=$L$50,M53,T53))","v":0},{"$f":"IF(IF($I$21=$L$50,O53,V53)=\"\",NA(),IF($I$21=$L$50,O53,V53))","v":6.24}]
[null,null,null,null,null,null,null,null,null,null,null,30,80,"12,5",{"$f":"I34","v":37.76},null,null,null,0,0.5,"12,5",37.76,null,null,0,0.5,{"$f":"IF(IF($I$21=$L$50,O54,V54)=\"\",NA(),IF($I$21=$L$50,O54,V54))","v":37.76}]
[null,null,null,null,null,null,null,null,null,null,null,60,90,"10",{"$f":"I35","v":62.76},null,null,null,0,10,10,62.76,null,null,0,10,{"$f":"IF(IF($I$21=$L$50,O55,V55)=\"\",NA(),IF($I$21=$L$50,O55,V55))","v":62.76}]
[null,null,null,null,null,null,null,null,null,null,null,90,100,"5",{"$f":"I37","v":86.47},null,null,null,30,60,7.5,66.759999999999991,null,null,30,60,{"$f":"IF(IF($I$21=$L$50,O56,V56)=\"\",NA(),IF($I$21=$L$50,O56,V56))","v":66.759999999999991}]
[null,null,null,null,null,null,null,null,null,null,null,95,100,"2,5",{"$f":"I38","v":88.77},null,null,null,90,100,5,86.47,null,null,90,100,{"$f":"IF(IF($I$21=$L$50,O57,V57)=\"\",NA(),IF($I$21=$L$50,O57,V57))","v":86.47}]
[null,null,null,null,null,null,null,null,null,null,null,null,null,{"$f":"B39","v":"Дно"},null,null,null,null,95,100,2.5,88.77,null,null,95,100,{"$f":"IF(IF($I$21=$L$50,O58,V58)=\"\",NA(),IF($I$21=$L$50,O58,V58))","v":88.77}]
[null,null,null,null,null,null,null,null,null,null,null,null,null,null,null,null,null,null,null,null,"Дно"]
[]
[null,"5. Показатель дробимости испытуемой фракции щебня (гравия):"]
[null,null,null,null,null,null,null,null,"Таблица "]
[null,"Показатель дробимости, %",null,null,null,"Марка по дробимости щебня (гравия)",null,null,null,null,null,{"$f":"IF(C21=L22,IF(B64<=10,1000,IF(B64<=14,800,IF(B64<=18,600,IF(B64<=26,400)))))","v":1000},{"$f":"IF(C21=L21,IF(B64<=10,1000,IF(B64<=14,800,IF(B64<=18,600,IF(B64<=26,400)))))","v":false}]
[null,7.8,null,null,null,{"$f":"IF(M63=FALSE,L63,M63)","v":1000}]
[]
[null,"6. Содержание пылевидных и глинистых частиц,  % по массе:",null,null,null,null,null,null,null,8.9999999999999993E-3]
[null,"7. Истинная плотность исходной горной породы и зерен щебня (гравия), г/см³ ",null,null,null,null,null,null,null,2.6739999999999999,"г/см³"]
[null,"8. Пустотность, %:",null,null,null,null,null,null,null,{"$f":"(1-(J26/(J67*1000)))","v":0.44390426327599097}]
[null,"9. Содержание зерен пластинчатой (лещадной) и игловатой форм, % по массе:",null,null,null,null,null,null,null,0.1]
[null,"10. Содержание дробленых зерен в щебне из гравия, % по массе:",null,null,null,null,null,null,null,0.81]
[null,"11. Другие виды испытания: \"Содержание глины в комках, %\"",null,null,null,null,null,null,null,0]
[null,"12. Радиационно-гигиеническая оценка указанная предприятием-изготовителем:",null,null,null,null,null,null,null,370,"Бк/кг"]
[]
[null," З А К Л Ю Ч Е Н И Е:"]
[null,"1. Зерновой состав реокмендуемое содержание отдельных фракций в крупном заполнителе в составе бетона согласно таблице№3 ГОСТ 26633-2012:"]
[null,{"$f":"IF(I21=N21,M39,M38)","v":"фр. 5:10"},{"$f":"N38","v":"- не соответствует ГОСТ 26633-2012 п.3.5.2.4 таблица №3"}]
[null,{"$f":"IF(I21=N21,\"\",M39)","v":""},{"$f":"IF(N39=\"\",\"\",N39)","v":""}]
[null,"2. Допустимые пределы каждой фракции (смеси), согласно ГОСТ 8267-93:"]
[null,"а.","2,5(1,25)",{"$f":"IF(D46<=95,\"- не соответствует ГОСТ 8267-93 п.4.2.2 таблица №1\",IF(D46>=100,\"- не соответствует ГОСТ 8267-93 п.4.2.2 таблица №1\",\"- соответствует ГОСТ 8267-93 п.4.2.2 таблица №1\"))","v":"- не соответствует ГОСТ 8267-93 п.4.2.2 таблица №1"}]
[null,"б.","5(3)",{"$f":"IF(F46<=90,\"- не соответствует ГОСТ 8267-93 п.4.2.2 таблица №1\",IF(F46>=100,\"- не соответствует ГОСТ 8267-93 п.4.2.2 таблица №1\",\"- соответствует ГОСТ 8267-93 п.4.2.2 таблица №1\"))","v":"- не соответствует ГОСТ 8267-93 п.4.2.2 таблица №1"}]
[null,"в.","0,5(d+D)",{"$f":"IF(G46<=30,\"- не соответствует ГОСТ 8267-93 п.4.2.2 таблица №1\",IF(G46>=80,\"- не соответствует ГОСТ 8267-93 п.4.2.2 таблица №1\",\"- соответствует ГОСТ 8267-93 п.4.2.2 таблица №1\"))","v":"- соответствует ГОСТ 8267-93 п.4.2.2 таблица №1"}]
[null,"г.","D",{"$f":"IF(I46<=0,\"- не соответствует ГОСТ 8267-93 п.4.2.2 таблица №1\",IF(I46>=10,\"- не соответствует ГОСТ 8267-93 п.4.2.2 таблица №1\",\"- соответствует ГОСТ 8267-93 п.4.2.2 таблица №1\"))","v":"- соответствует ГОСТ 8267-93 п.4.2.2 таблица №1"}]
[null,"д.","1,25 D",{"$f":"IF(J46>0.5,\"- не соответствует ГОСТ 8267-93 п.4.2.2 таблица №1\",\"- соответствует ГОСТ 8267-93 п.4.2.2 таблица №1\")","v":"- соответствует ГОСТ 8267-93 п.4.2.2 таблица №1"}]
[null,"3. Марки по дробимости щебня из гравия и гравия должны соответствовать требованиям, указанным в таблице №5:",null,null,null,null,null,null,null,null,null,{"$f":"F64","v":1000},null,null,"Марка дробимости допускает применять щебень из гравия для классов бетона В27,5 и ниже"]
[null,{"$f":"IF(L84=800,O84,IF(L84=1000,O85,IF(L84=600,\"\")))","v":"Марка дробимости допускает применять щебень из гравия для классов бетона ниже В30 и выше"},null,null,null,null,null,null,null,null,null,null,null,null,"Марка дробимости допускает применять щебень из гравия для классов бетона ниже В30 и выше"]
[null,"4. Содержание пылевидных и глинистых частиц вщебне из изверженных и метаморфических пород, щебне из гравия и в гравии не должно превышать 1%:"]
[null,{"$f":"IF(J66<=1%,\"- соответствует ГОСТ 26633-2012 п.3.5.2.5\",IF(J66>1%,\"- не соответствует ГОСТ 26633-2012 п.3.5.2.5\"))","v":"- соответствует ГОСТ 26633-2012 п.3.5.2.5"}]
[null,"5. Крупные заполнители должны иметь среднюю истинную плотность зерен от 2,000 до 3,000 г/см³"]
[null,{"$f":"IF(J67<2,\"- не соответствует ГОСТ 26633-2012 п.3.5.2.1\",IF(J67>3,\"- не соответствует ГОСТ 26633-2012 п.3.5.2.1\",\"- соответствует ГОСТ 26633-2012 п.3.5.2.1\"))","v":"- соответствует ГОСТ 26633-2012 п.3.5.2.1"}]
[null,"6. Содержание зерен пластичной (лещадной) и игловатой формы в крупном заполнителе не должно превышать 35% массы:"]
[null,{"$f":"IF(J69<35%,\"- соответствует ГОСТ 26633-2012 п.3.5.2.6\",IF(J69>35%,\"- не соответствует ГОСТ 26633-2012 п.3.5.2.6\",\"\"))","v":"- соответствует ГОСТ 26633-2012 п.3.5.2.6"}]
[null,"7. Щебень из гравия и валунов должен содержать дробленные зерна в колличестве не менее 80% по массе:"]
[null,{"$f":"IF(J70>80%,\"- соответствует ГОСТ 8267-93 п.4.3.1\",IF(J70<80%,\"- не соответствует ГОСТ 8267-93 п.4.3.1\",\"\"))","v":"- соответствует ГОСТ 8267-93 п.4.3.1"}]
[null,"8. Содержание глины в комках не должно быть более указанного в таблице №10:"]
[null,{"$f":"IF(J71<0.25,\"- соответствует ГОСТ 8267-93 п.4.7.2\",IF(J71>0.25,\"- не соответствует ГОСТ 8267-93 п.4.7.2\",\"\"))","v":"- соответствует ГОСТ 8267-93 п.4.7.2"}]
[null,"9. Щебень/щебень из гравия в зависимости от значений удельной эффективности  естественных радионуклидов Аэфф. По результатам которой устанавливают область его применения согласно ГОСТ 8267-93 п.4.9.:"]
[null,{"$f":"IF(N97<=370,O97,IF(N97>370,O98,IF(N97<=740,O98,IF(N97>740,O99,IF(N97<=1500,O99)))))","v":"щебень/щебень из гравия приемлем во вновь строящихся жилых и общественных зданиях;"},null,null,null,null,null,null,null,null,null,null,null,{"$f":"J72","v":370},"щебень/щебень из гравия приемлем во вновь строящихся жилых и общественных зданиях;"]
[null,null,null,null,null,null,null,null,null,null,null,null,null,null,"щебень/щебень из гравия приемлем для дорожного строительства в пределах территории населенных пунктов и зон перспективной застройки, а также при возведении производственных зданий и сооружений;"]
[null,null,null,null,null,null,null,null,null,null,null,null,null,null,"щебень/щебень из гравия приемлем в дорожном строительстве вне населенных пунктов;"]
[null,"Примечание: Запрещается частичная перепечатка  данного протокола без согласования с испытательной лабораторией"]
[null,null,null,null,null,null,null,null,null,null,null,"Болтенкова И.Ю."]
[null,null,null,null,null,null,null,null,null,null,null,"Кубакова Л.Р."]
[null,"     ",null,null,null,null,null,null,null,null,null,"Приходько В.А."]
[null,null,null,null,null,null,null,null,null,null,null,"Сухоручкин С.В."]
[null,"Испытания провел лаборант:",null,null,null,null,null,"/","Сухоручкин С.В.",null,"/"]
[null,null,null,null,null,"(подпись)",null,null,"(Ф.И.О.)"]

{"sheet":"Лист2","index":1,"n_rows":0,"n_cols":0,"rows_kept":0,"cut":false,"hidden":false,"merged":[]}

{"sheet":"Лист3","index":2,"n_rows":0,"n_cols":0,"rows_kept":0,"cut":false,"hidden":false,"merged":[]}